bitfinex-derivatives/quotes_SOLF0:USTF0_20251107
["timestamp","ask_amount","ask_price","bid_price","bid_amount"]
[1762491871106,3.18,156.73,156.68,0.04087424]
[1762491871601,3.18,156.73,156.68,3.00087424]
[1762491872110,3.18,156.76,156.68,3.00087424]
[1762491872806,3.18,156.76,156.71,2.96]
[1762491873003,3.18,156.76,156.72,3.00913019]
[1762491873802,3.18,156.79,156.72,3.00913019]
[1762491876103,3.18,156.79,156.73,2.96]
[1762491877800,3.18,156.79,156.72,0.04913019]
[1762491878004,3.18,156.79,156.72,3.00913019]
[1762491878213,3.1,156.78,156.72,3.00913019]
[1762491879306,3.1,156.77,156.72,0.04913019]
[1762491879612,3.1,156.77,156.72,3.14913019]
[1762491879910,3.1,156.76,156.72,3.14913019]
[1762491882205,3.06,156.75,156.72,0.04913019]
[1762491882415,3.06,156.75,156.72,3.15913019]
[1762491882718,3.06,156.79,156.72,3.15913019]
[1762491883315,3.06,156.79,156.72,0.04913019]
[1762491884113,3.06,156.76,156.72,0.04913019]
[1762491884810,3.06,156.76,156.72,3.15913019]
[1762491885912,3.06,156.76,156.72,0.04913019]
[1762491887313,8.8046,156.76,156.72,0.04913019]
[1762491887513,3.06,156.75,156.72,0.04913019]
[1762491888315,3.06,156.75,156.72,3.15913019]
[1762491888517,3.06,156.75,156.72,0.04913019]
[1762491891113,3.06,156.74,156.72,0.04913019]
[1762491894417,2.87741781,156.78,156.72,0.04913019]
[1762491894418,3.06,156.76,156.72,3.15913019]
[1762491894725,2.87741781,156.78,156.72,3.15913019]
[1762491894911,3.06,156.79,156.73,3.11]
[1762491895118,8.8025,156.82,156.75,3.11]
[1762491895320,3.06,156.81,156.75,3.11]
[1762491895918,8.8016,156.84,156.75,3.11]
[1762491896126,8.8016,156.84,156.78,0.04307347]
[1762491896322,3.06,156.84,156.79,3.11]
[1762491897021,3.06,156.84,156.78,3.15307347]
[1762491897022,3.06,156.83,156.78,3.15307347]
[1762491897418,1.83298522,156.86,156.79,3.11]
[1762491897625,3.06,156.85,156.81,0.0411648]
[1762491897819,3.06,156.85,156.81,3.1511648]
[1762491899032,3.06,156.85,156.81,0.0411648]
[1762491900316,4.89298522,156.82,156.81,0.0411648]
[1762491900522,3.06,156.81,156.75,3.11]
[1762491901332,4.89298522,156.81,156.75,8.8546]
[1762491901522,0.04339656,156.8,156.76,3.15635469]
[1762491901823,3.10339656,156.8,156.76,3.15635469]
[1762491904225,0.04339656,156.8,156.77,3.11]
[1762491905130,0.04339656,156.8,156.79,3.11]
[1762491910031,1.83298522,156.85,156.79,3.11]
[1762491910332,1.83298522,156.85,156.81,3.11]
[1762491910634,1.83298522,156.89,156.82,3.07]
[1762491910835,4.74872494,156.88,156.82,3.07]
[1762491911029,1.83298522,156.89,156.86,3.07]
[1762491911226,4.74872285,156.88,156.86,3.07]
[1762491911421,4.78298522,156.89,156.85,8.8109]
[1762491911828,4.78298522,156.89,156.86,3.07]
[1762491912032,1.83298522,156.91,156.87,3.07]
[1762491912237,4.74702183,156.9,156.87,3.11753238]
[1762491912436,4.74702183,156.92,156.87,3.11753238]
[1762491912634,4.74702183,156.91,156.87,3.11753238]
[1762491912935,2.95,156.91,156.87,3.11753238]
[1762491913134,4.74702183,156.91,156.87,3.11753238]
[1762491913334,7.69702183,156.92,156.87,3.11753238]
[1762491913534,4.74702183,156.91,156.87,3.11753238]
[1762491913830,7.69702183,156.91,156.87,3.11753238]
[1762491914031,4.78298522,156.89,156.87,0.04753238]
[1762491914232,9.53000705,156.91,156.87,3.11753238]
[1762491914536,1.83298522,156.91,156.87,3.11753238]
[1762491914833,7.69702183,156.92,156.87,3.11753238]
[1762491915026,2.95,156.92,156.87,3.11753238]
[1762491915541,2.95,156.9,156.87,0.04753238]
[1762491916032,4.78298522,156.94,156.87,3.11753238]
[1762491916239,4.78298522,156.92,156.89,0.0444704]
[1762491916433,2.95,156.91,156.89,0.04291279]
[1762491917637,1.83298522,156.92,156.89,0.04291279]
[1762491918331,1.83298522,156.92,156.89,3.11291279]
[1762491918731,2.95,156.93,156.89,3.11291279]
[1762491919846,2.95,156.93,156.89,0.04291279]
[1762491920135,2.95,156.93,156.89,3.11291279]
[1762491921537,2.95,156.92,156.89,0.04291279]
[1762491922139,2.95,156.9,156.89,0.04291279]
[1762491923341,4.78298522,156.94,156.89,0.04291279]
[1762491923542,2.95,156.93,156.9,0.04616837]
[1762491927648,2.95,156.93,156.9,3.11616837]
[1762491927951,2.95,156.96,156.9,3.11616837]
[1762491928344,1.83298522,156.97,156.92,3.07]
[1762491928647,4.78298522,156.97,156.93,3.07]
[1762491928847,4.78298522,156.97,156.93,3.11804717]
[1762491929047,2.95,156.97,156.93,3.11804717]
[1762491929249,2.95,157.0,156.95,3.07]
[1762491929551,2.95,157.0,156.96,0.04832162]
[1762491929946,2.95,157.0,156.96,3.11832162]
[1762491930344,2.95,157.0,156.96,0.04832162]
[1762491930739,2.95,157.0,156.96,3.11832162]
[1762491931246,2.95,156.99,156.96,0.04832162]
[1762491931642,2.95,156.99,156.96,3.11832162]
[1762491932244,4.78298522,157.01,156.96,3.11832162]
[1762491932446,2.95,157.05,156.96,3.11832162]
[1762491932650,2.95,157.03,156.99,0.04520784]
[1762491932940,2.95,157.01,156.99,0.04520784]
[1762491933751,2.95,157.03,156.99,3.11520784]
[1762491933941,2.95,157.03,156.99,0.04306834]
[1762491934148,2.95,157.03,156.99,3.11306834]
[1762491934959,2.95,157.03,156.99,0.04306834]
[1762491935353,2.95,157.03,156.99,3.11306834]
[1762491935553,2.95,157.03,156.99,4.94605356]
[1762491936753,2.95,157.03,156.99,0.04306834]
[1762491938054,2.95,157.03,156.99,3.11306834]
[1762491938362,2.95,157.03,156.99,0.04306834]
[1762491938563,2.95,157.03,156.99,3.10306834]
[1762491938958,2.95,157.03,156.99,0.04306834]
[1762491942061,2.95,157.03,156.99,3.09306834]
[1762491942369,2.95,157.03,157.0,3.05]
[1762491942964,2.95,157.03,156.99,4.92605356]
[1762491943868,4.78298522,157.03,156.99,0.04306834]
[1762491944169,25.00114109,157.1,156.99,0.04306834]
[1762491944170,3.05,157.01,156.99,0.04306834]
[1762491944366,25.00114109,157.1,156.98,3.09189689]
[1762491944367,3.05,157.04,156.98,3.09189689]
[1762491944568,3.05,157.04,156.9,273.08881058]
[1762491944569,3.05,157.04,157.0,3.05]
[1762491944763,3.05,157.03,157.0,3.09200818]
[1762491945172,3.05,157.03,157.0,0.04200818]
[1762491945368,3.05,157.01,157.0,0.04200818]
[1762491945572,3.05,157.01,156.99,0.04606931]
[1762491946675,3.05,157.06,156.99,8.83196931]
[1762491946877,3.05,157.04,157.01,0.04391106]
[1762491947076,3.05,157.04,157.01,0.0435875]
[1762491951367,3.05,157.04,157.01,3.0935875]
[1762491951568,3.05,157.07,157.01,3.0935875]
[1762491951773,3.05,157.07,156.99,1.83298522]
[1762491951774,3.05,157.06,157.02,0.04117543]
[1762491951981,3.05,157.06,157.02,3.09117543]
[1762491952778,3.05,157.06,157.02,8.82597543]
[1762491953275,3.05,157.06,157.02,3.09117543]
[1762491954682,3.05,157.09,157.03,3.05]
[1762491954872,3.05,157.09,157.05,3.05]
[1762491955272,10.61438522,157.12,157.06,5.7333]
[1762491955472,3.05,157.11,157.07,3.09627715]
[1762491956269,3.05,157.11,157.07,0.04627715]
[1762491956779,3.05,157.1,157.07,3.09627715]
[1762491956978,3.05,157.1,157.07,0.04627715]
[1762491960493,5.7311,157.13,157.07,3.09627715]
[1762491960494,3.05,157.13,157.07,3.09627715]
[1762491961271,3.05,157.11,157.07,0.04627715]
[1762491961585,3.05,157.11,157.07,3.09627715]
[1762491961979,3.05,157.11,157.07,0.04627715]
[1762491963078,3.05,157.1,157.07,0.04627715]
[1762491966087,8.7822,157.1,157.07,0.04627715]
[1762491966286,3.05,157.09,157.07,0.04627715]
[1762491968981,5.9042332,157.09,157.07,0.04627715]
[1762491969187,3.05,157.08,156.99,3.05]
[1762491969485,3.05,157.06,156.99,8.7859]
[1762491969791,3.05,157.06,157.0,3.05]
[1762491969983,3.05,157.05,157.0,3.05]
[1762491970285,3.0924154,157.05,157.01,0.04417763]
[1762491970589,3.05,157.04,157.01,0.04417763]
[1762491971785,3.15,157.02,157.01,0.04417763]
[1762491977284,3.15,157.02,157.01,0.00417763]
[1762491977591,3.15,157.02,156.93,3.11]
[1762491978090,3.15,157.0,156.93,3.11]
[1762491978587,0.04606698,156.98,156.97,3.11]
[1762491978790,3.15,157.06,156.97,3.11]
[1762491979088,3.15,157.06,156.98,3.11]
[1762491979685,0.04769146,157.04,157.0,5.77726926]
[1762491979993,3.19769146,157.04,157.0,8.88726926]
[1762491980294,3.19769146,157.04,157.01,3.11]
[1762491980497,3.19769146,157.04,157.0,5.77726926]
[1762491981788,3.19769146,157.04,157.0,0.04176926]
[1762491982692,3.15,157.03,157.0,0.04176926]
[1762491984703,8.8848,157.03,157.0,0.04176926]
[1762491985001,3.15,157.02,157.0,0.04176926]
[1762491986796,0.04769146,157.04,157.0,3.15176926]
[1762491987301,3.19769146,157.04,157.0,3.15176926]
[1762491987494,3.19769146,157.04,157.0,0.04176926]
[1762491988997,3.15,157.03,157.0,0.04176926]
[1762491989192,3.15,157.03,157.0,3.15176926]
[1762491989399,3.15,157.03,157.0,0.04176926]
[1762491990996,6.0042332,157.01,156.91,3.11]
[1762491991197,3.15,157.0,156.91,3.11]
[1762491991403,3.15,156.95,156.9,276.54198882]
[1762491991599,3.15,156.94,156.87,5.7403]
[1762491992496,3.19470822,156.92,156.89,0.04533209]
[1762491992700,3.19678496,156.92,156.89,0.04126458]
[1762491993597,3.19678496,156.92,156.89,3.15126458]
[1762491993799,3.19678496,156.92,156.89,0.04126458]
[1762491996706,3.15,156.91,156.89,0.04126458]
[1762491999507,3.24,156.91,156.89,0.04126458]
[1762491999901,3.24,156.91,156.81,8.8623]
[1762492000207,3.24,156.91,156.81,11.7165332]
[1762492001002,3.14,156.87,156.84,0.04030394]
[1762492008513,0.0476306,156.88,156.86,3.0]
[1762492009213,0.0476306,156.88,156.87,3.0]
[1762492009919,0.0476306,156.88,156.86,8.7406]
[1762492010514,0.0476306,156.88,156.87,3.0]
[1762492011221,3.14,156.95,156.89,8.7395]
[1762492011411,3.14,156.95,156.91,2.8542332]
[1762492011613,3.14,156.95,156.86,5.7406]
[1762492011816,3.14,156.95,156.87,2.8542332]
[1762492012123,3.14,156.92,156.89,0.04522479]
[1762492012324,3.14,156.92,156.89,0.04482267]
[1762492014333,3.14,156.92,156.9,2.8542332]
[1762492014632,3.18414566,156.93,156.9,2.8542332]
[1762492015821,3.18414566,156.93,156.91,3.0]
[1762492015822,0.04414566,156.93,156.91,3.0]
[1762492016434,0.04414566,156.93,156.92,4.82949813]
[1762492016634,3.14,156.99,156.92,4.82949813]
[1762492016935,3.14,156.99,156.95,1.82949813]
[1762492017235,3.14,156.98,156.93,1.82949813]
[1762492017630,3.14,156.96,156.94,0.04153259]
[1762492018027,0.04211893,156.97,156.95,4.82949813]
[1762492018627,0.04211893,156.97,156.95,10.56679813]
[1762492019833,0.04211893,156.97,156.94,0.04153259]
[1762492019834,3.18211893,156.97,156.94,0.04153259]
[1762492020134,3.14,156.96,156.94,0.04153259]
[1762492021625,8.8773,156.96,156.94,0.04153259]
[1762492021826,0.04211893,156.97,156.94,0.04153259]
[1762492022030,0.04211893,156.97,156.95,1.82949813]
[1762492023333,3.18211893,156.97,156.95,1.82949813]
[1762492023539,3.18211893,156.97,156.94,0.04153259]
[1762492024139,3.14,156.96,156.94,0.04153259]
[1762492026431,0.04211893,156.97,156.94,3.04153259]
[1762492026639,3.18211893,156.97,156.94,0.04153259]
[1762492026938,0.04211893,156.97,156.94,3.04153259]
[1762492027639,0.04211893,156.97,156.94,8.77923259]
[1762492028030,0.04211893,156.97,156.94,0.04153259]
[1762492028031,3.18211893,156.97,156.94,0.04153259]
[1762492028435,0.04211893,156.97,156.94,3.04153259]
[1762492029737,3.14,157.04,156.96,7.28994237]
[1762492029931,3.14,157.04,156.97,3.0]
[1762492030832,3.14,157.04,156.99,0.04054398]
[1762492031034,3.14,157.04,156.99,3.03054398]
[1762492031739,5.734,157.05,156.99,3.03054398]
[1762492032341,3.15,157.04,156.99,3.03054398]
[1762492034839,7.79277082,157.08,156.99,3.03054398]
[1762492035045,3.15,157.08,156.99,3.03054398]
[1762492036144,3.15,157.08,157.01,5.7351]
[1762492036344,3.15,157.08,157.03,0.04088776]
[1762492037040,3.15,157.05,157.03,0.04088776]
[1762492037741,3.15,157.06,157.03,0.04088776]
[1762492038942,3.15,157.09,157.03,3.03088776]
[1762492039342,3.15,157.13,157.04,2.99]
[1762492039541,3.15,157.13,157.07,0.04694214]
[1762492040941,3.15,157.11,157.07,0.04694214]
[1762492042148,3.15,157.1,157.07,0.04694214]
[1762492043149,3.15,157.08,157.07,0.04694214]
[1762492048150,5.7318,157.11,157.07,0.04694214]
[1762492048349,3.15,157.13,157.08,2.99]
[1762492051762,5.73,157.16,157.07,7.60630716]
[1762492051763,3.15,157.16,157.12,2.99]
[1762492052062,5.7285,157.2,157.14,2.99]
[1762492052263,3.15,157.19,157.15,0.04295307]
[1762492055266,3.15,157.19,157.15,3.03295307]
[1762492055865,3.15,157.19,157.15,0.04295307]
[1762492056266,3.15,157.19,157.15,3.03295307]
[1762492056469,8.8778,157.22,157.15,3.03295307]
[1762492056664,3.15,157.22,157.15,3.03295307]
[1762492056869,66.95,157.25,157.15,3.03295307]
[1762492057075,66.95,157.25,157.18,3.03802053]
[1762492057369,3.15,157.25,157.18,3.03802053]
[1762492057868,3.15,157.25,157.19,2.99]
[1762492058365,3.15,157.25,157.19,8.7186]
[1762492058571,3.15,157.25,157.2,2.99]
[1762492061470,8.7556,157.28,157.2,2.99]
[1762492061663,8.7556,157.28,157.22,0.04030243]
[1762492061867,3.03,157.27,157.22,0.04030243]
[1762492062279,3.03,157.27,157.22,2.98030243]
[1762492064677,8.7549,157.3,157.23,2.94]
[1762492065068,3.03,157.29,157.23,2.94]
[1762492065271,3.03,157.31,157.24,2.94]
[1762492065471,3.03,157.31,157.26,0.04584586]
[1762492065670,3.03,157.28,157.27,0.04638204]
[1762492065874,3.03,157.28,157.18,2.94]
[1762492066480,3.03,157.24,157.18,2.94]
[1762492066878,3.07191539,157.23,157.19,0.04659784]
[1762492068680,3.03,157.2,157.19,0.04659784]
[1762492068878,3.07191539,157.23,157.19,0.04659784]
[1762492070088,3.03,157.34,157.23,2.94]
[1762492070284,3.03,157.34,157.25,2.94]
[1762492070580,3.03,157.34,157.24,4.27703359]
[1762492070581,3.03,157.34,157.29,2.94]
[1762492070875,8.86306067,157.41,157.19,11.4572]
[1762492070876,3.03,157.38,157.31,2.94]
[1762492071283,3.03,157.38,157.33,0.04556143]
[1762492071677,3.03,157.38,157.33,2.98556143]
[1762492071981,3.03,157.41,157.33,2.98556143]
[1762492072580,3.03,157.4,157.33,2.98556143]
[1762492072777,3.03,157.4,157.35,0.04773866]
[1762492075174,3.03,157.4,157.35,2.98773866]
[1762492076179,3.03,157.43,157.35,2.98773866]
[1762492077076,3.03,157.43,157.35,8.71043866]
[1762492077386,3.03,157.43,157.35,2.98773866]
[1762492078773,3.03,157.42,157.35,2.98773866]
[1762492079378,3.03,157.42,157.35,0.04773866]
[1762492080188,3.03,157.4,157.35,0.04773866]
[1762492080389,3.03,157.4,157.36,0.04332915]
[1762492080981,5.7203,157.43,157.36,2.98332915]
[1762492081178,3.03,157.42,157.36,2.98332915]
[1762492081385,3.03,157.42,157.36,0.04332915]
[1762492083188,3.03,157.42,157.36,2.98332915]
[1762492083386,3.03,157.44,157.36,2.98332915]
[1762492083583,3.03,157.44,157.38,0.04648877]
[1762492083986,8.7502,157.44,157.38,0.04648877]
[1762492084288,3.03,157.43,157.38,0.04648877]
[1762492084487,8.7506,157.43,157.38,0.04648877]
[1762492084790,3.07040577,157.42,157.28,2.94]
[1762492084978,5.7215,157.4,157.3,5.7248]
[1762492085181,3.03,157.4,157.31,2.94]
[1762492085891,3.03,157.36,157.34,0.04262118]
[1762492086394,0.04016112,157.37,157.34,0.04262118]
[1762492087087,3.07016112,157.37,157.34,0.04262118]
[1762492092688,0.04016112,157.37,157.34,3.25262118]
[1762492093291,3.12,157.44,157.36,3.21]
[1762492093494,3.12,157.44,157.36,8.9327]
[1762492093690,3.12,157.44,157.36,3.21]
[1762492094190,3.12,157.44,157.4,3.21]
[1762492095191,3.12,157.47,157.4,3.21]
[1762492095398,3.12,157.47,157.42,0.04692527]
[1762492095801,8.8391,157.47,157.42,0.04692527]
[1762492095991,3.12,157.46,157.42,0.04692527]
[1762492096899,3.12,157.46,157.42,3.25692527]
[1762492097197,3.12,157.5,157.42,3.25692527]
[1762492097393,3.12,157.5,157.44,0.04712467]
[1762492098196,3.12,157.5,157.44,3.25712467]
[1762492098393,3.12,157.53,157.46,3.21]
[1762492098594,3.12,157.53,157.48,3.25643446]
[1762492098795,3.12,157.53,157.49,0.04359718]
[1762492098992,3.12,157.53,157.49,0.04882174]
[1762492101698,3.12,157.5,157.49,0.04882174]
[1762492102792,3.12,157.47,157.38,3.21]
[1762492103193,5.7197,157.46,157.38,3.21]
[1762492103396,3.12,157.45,157.36,5.7228]
[1762492103590,3.12,157.45,157.36,8.9328]
[1762492103790,0.0480467,157.42,157.39,0.0425849]
[1762492103998,0.0480467,157.42,157.39,3.2525849]
[1762492104194,3.12,157.48,157.4,3.21]
[1762492104394,3.12,157.48,157.4,8.9314]
[1762492105089,3.12,157.48,157.42,0.04727609]
[1762492105493,43.41820266,157.54,157.42,0.04727609]
[1762492105494,3.12,157.52,157.42,3.25727609]
[1762492105701,3.12,157.52,157.45,3.25225384]
[1762492106090,3.12,157.52,157.46,5.7191]
[1762492106505,3.12,157.55,157.47,8.9288]
[1762492106705,3.12,157.57,157.49,3.25839572]
[1762492106900,3.12,157.57,157.51,0.04012595]
[1762492107203,3.12,157.56,157.51,0.04012595]
[1762492108697,8.836,157.56,157.51,0.04012595]
[1762492109003,3.12,157.55,157.51,0.04012595]
[1762492110000,8.8363,157.55,157.51,0.04012595]
[1762492110207,3.12,157.54,157.51,0.04012595]
[1762492111907,8.8367,157.54,157.51,0.04012595]
[1762492112109,3.12,157.53,157.42,3.21]
[1762492112606,3.12,157.5,157.42,3.21]
[1762492113206,3.1632449,157.48,157.44,0.04088019]
[1762492113413,3.1632449,157.48,157.44,0.04876446]
[1762492115612,3.12,157.46,157.44,0.04876446]
[1762492116011,0.0432449,157.48,157.44,3.25876446]
[1762492117413,0.0432449,157.48,157.44,8.97856446]
[1762492117612,0.0432449,157.48,157.45,3.21]
[1762492117907,0.0432449,157.48,157.44,0.04876446]
[1762492117908,3.1632449,157.48,157.44,0.04876446]
[1762492118316,0.0432449,157.48,157.44,3.17876446]
[1762492118517,3.1432449,157.48,157.44,3.17876446]
[1762492118813,3.1432449,157.48,157.44,0.04876446]
[1762492119817,3.1,157.47,157.44,0.04876446]
[1762492120409,3.1432449,157.48,157.44,3.17876446]
[1762492120606,3.1432449,157.48,157.44,0.04876446]
[1762492122913,2.99,157.47,157.44,0.04876446]
[1762492123312,8.7093,157.47,157.44,0.04876446]
[1762492123613,3.0332449,157.48,157.44,0.04876446]
[1762492123819,0.0432449,157.48,157.44,3.24876446]
[1762492124313,0.0432449,157.48,157.47,3.2]
[1762492126119,2.99,157.53,157.47,8.9187]
[1762492127121,2.99,157.53,157.48,0.0422033]
[1762492127522,2.99,157.53,157.48,3.2422033]
[1762492128423,2.99,157.53,157.48,0.0422033]
[1762492129330,8.707,157.53,157.48,0.0422033]
[1762492129532,2.99,157.52,157.48,0.0422033]
[1762492129828,2.99,157.52,157.48,0.0483818]
[1762492130228,2.99,157.49,157.48,0.0483818]
[1762492130425,2.99,157.49,157.4,3.2]
[1762492131337,0.04608296,157.46,157.43,3.24012524]
[1762492134337,0.04608296,157.46,157.43,8.96042524]
[1762492134638,0.04608296,157.46,157.44,3.2]
[1762492140640,0.04608296,157.46,157.44,8.9199]
[1762492140839,2.99,157.52,157.45,3.2]
[1762492141238,2.99,157.52,157.46,5.7191]
[1762492141436,2.99,157.52,157.43,3.2]
[1762492141745,2.99,157.52,157.46,3.24028176]
[1762492142146,2.99,157.51,157.46,3.24028176]
[1762492142939,2.99,157.49,157.46,0.04028176]
[1762492143550,2.99,157.47,157.46,0.04028176]
[1762492143844,2.99,157.47,157.39,3.2]
[1762492144344,8.7092,157.47,157.4,5.7214]
[1762492144546,2.99,157.46,157.4,3.2]
[1762492144741,2.99,157.46,157.38,4.26082788]
[1762492144742,3.03159957,157.45,157.41,3.24463153]
[1762492145244,3.03159957,157.45,157.41,0.04463153]
[1762492147851,8.86902242,157.45,157.41,0.04463153]
[1762492148045,2.99,157.44,157.41,0.04463153]
[1762492148349,2.99,157.42,157.41,0.04463153]
[1762492150341,2.99,157.44,157.41,0.04463153]
[1762492152746,0.04159957,157.45,157.41,3.12463153]
[1762492153138,3.14159957,157.45,157.41,0.04463153]
[1762492153939,3.14159957,157.45,157.41,3.12463153]
[1762492154140,3.14159957,157.45,157.41,0.04463153]
[1762492155961,3.14159957,157.45,157.41,3.12463153]
[1762492157357,0.04159957,157.45,157.41,3.12463153]
[1762492157862,0.04159957,157.45,157.43,8.8003]
[1762492158161,0.04159957,157.45,157.44,3.08]
[1762492158458,7.96957305,157.55,157.46,3.08]
[1762492158459,8.93742285,157.54,157.46,3.08]
[1762492158759,3.1,157.57,157.46,3.08]
[1762492159150,3.1,157.56,157.43,7.71932503]
[1762492159351,3.1,157.56,157.5,3.08]
[1762492159558,3.1,157.56,157.51,0.04236277]
[1762492159759,8.93742285,157.59,157.52,3.08]
[1762492159959,3.1,157.59,157.52,3.08]
[1762492161059,5.7138,157.62,157.55,3.08]
[1762492161261,3.1,157.61,157.57,0.04433857]
[1762492161959,8.8128,157.65,157.57,3.12433857]
[1762492162163,3.1,157.64,157.57,3.12433857]
[1762492162368,5.83742285,157.67,157.57,3.12433857]
[1762492162557,3.1,157.66,157.57,3.08]
[1762492162863,3.1,157.66,157.6,0.04773643]
[1762492164861,3.1,157.66,157.6,3.12773643]
[1762492165263,3.1,157.66,157.6,0.04773643]
[1762492165563,3.1,157.65,157.6,0.04773643]
[1762492165764,3.1,157.62,157.51,3.08]
[1762492165964,3.1,157.61,157.51,3.08]
[1762492166156,3.1,157.61,157.43,7.71932503]
[1762492166357,3.1,157.56,157.44,3.08]
[1762492166960,0.04591287,157.52,157.48,0.04584489]
[1762492167266,0.04591287,157.52,157.48,3.12584489]
[1762492167763,3.14591287,157.52,157.48,3.12584489]
[1762492168768,3.14591287,157.52,157.5,0.21656]
[1762492169867,0.04591287,157.52,157.5,3.29656]
[1762492170068,0.04591287,157.52,157.5,0.21656]
[1762492170269,3.14591287,157.52,157.5,0.21656]
[1762492170968,0.04591287,157.52,157.5,3.29656]
[1762492173069,3.1,157.59,157.51,3.08]
[1762492173666,13.07696092,157.63,157.55,3.08]
[1762492173975,3.1,157.62,157.55,3.08]
[1762492174171,3.1,157.62,157.57,0.04485161]
[1762492175279,3.1,157.61,157.57,0.04485161]
[1762492176872,3.1,157.61,157.57,3.12485161]
[1762492177466,3.1,157.67,157.57,3.12485161]
[1762492177667,3.1,157.67,157.57,3.08]
[1762492177870,3.1,157.67,157.6,0.04682448]
[1762492180473,3.1,157.67,157.6,3.06682448]
[1762492180674,7.45366092,157.69,157.61,3.18]
[1762492180881,3.19,157.68,157.63,0.04299728]
[1762492182178,3.19,157.66,157.63,0.04299728]
[1762492184576,3.19,157.65,157.63,0.04299728]
[1762492186278,3.19,157.64,157.54,3.18]
[1762492186482,3.19,157.64,157.55,3.18]
[1762492186688,5.7135,157.63,157.55,3.18]
[1762492186891,3.19,157.62,157.55,3.18]
[1762492187494,0.04753886,157.6,157.57,0.04755557]
[1762492187982,0.04753886,157.6,157.57,3.22755557]
[1762492188686,0.04753886,157.6,157.58,3.18]
[1762492189283,0.04753886,157.6,157.59,3.18]
[1762492193181,7.45366092,157.66,157.59,3.18]
[1762492193891,3.19,157.66,157.6,3.18]
[1762492194092,3.19,157.66,157.62,3.18]
[1762492197494,8.9012,157.69,157.62,3.18]
[1762492197797,3.19,157.72,157.64,3.22180408]
[1762492197996,3.19,157.7,157.66,0.04500653]
[1762492199085,3.19,157.69,157.66,0.04500653]
[1762492201697,3.19,157.72,157.66,3.22500653]
[1762492201999,3.19,157.75,157.66,3.22500653]
[1762492202194,3.19,157.73,157.69,3.22820625]
[1762492202394,3.19,157.73,157.69,3.22892879]
[1762492202695,2.83258769,157.74,157.69,3.22892879]
[1762492202898,3.19,157.75,157.69,3.22892879]
[1762492203094,2.83258769,157.78,157.69,3.22892879]
[1762492203294,2.83258769,157.78,157.72,3.18]
[1762492203499,6.02258769,157.78,157.73,3.22151618]
[1762492203798,2.83258769,157.78,157.73,3.22151618]
[1762492204299,3.19,157.81,157.73,3.22151618]
[1762492205399,8.8973,157.8,157.73,3.22151618]
[1762492205696,3.19,157.79,157.75,0.04828119]
[1762492207495,3.19,157.77,157.75,0.04828119]
[1762492207692,3.19,157.79,157.75,3.22828119]
[1762492210905,3.19,157.83,157.75,3.22828119]
[1762492211105,99.71028036,157.86,157.65,107.51051682]
[1762492211106,3.19,157.86,157.77,3.0470547]
[1762492211308,3.19,157.86,157.8,0.04228132]
[1762492211912,3.19,157.83,157.8,0.04228132]
[1762492213709,5.705,157.86,157.8,3.04228132]
[1762492213710,8.895,157.86,157.8,3.04228132]
[1762492213998,3.19,157.85,157.8,0.04228132]
[1762492214203,3.19,157.84,157.8,0.04228132]
[1762492215005,3.19,157.84,157.8,3.04228132]
[1762492216509,3.19,157.84,157.8,0.04228132]
[1762492217306,3.19,157.84,157.8,3.04228132]
[1762492218505,16.12191682,157.87,157.8,3.04228132]
[1762492218709,3.19,157.86,157.8,3.04228132]
[1762492223217,7.22721682,157.87,157.81,3.0]
[1762492223417,8.894,157.89,157.81,3.0]
[1762492223717,8.894,157.89,157.83,0.04264787]